Cogmind - Beta 9.6 @@@ ROGUE MODE // 2020.08.02 @ 23:23:00 // Winter2019/RPGLIKE Player: Hermelin Result: Destroyed by S-27 Virus with Autogun Performance ------------- Evolutions (6) 3000 Regions Visited (25) 5000 Robots Destroyed (455) 2275 Value Destroyed (18604) 18604 Prototype IDs (239) 4780 Alien Tech Used (0) 0 Bonus (10726) 10726 TOTAL SCORE: 44385 Bonus ------- High Alert Combat Kills 5177 Follower Combat Kills 1339 Entered Garrisons 600 Used RIF Installer 1500 Network Hubs Disabled 400 Aligned with FarCom 300 Met Data Miner 300 Used Data Conduit 3000 Met R17 at Cetus 500 Friendly Fire -2390 Cogmind --------- Core Integrity 0/850 Matter 350/350 Energy 487/530 System Corruption 0% Temperature Cool (0) Movement Flying (50) Location -4/Armory Parts ------- > --- POWER (2) -------- Cooled Ion Engine Quantum Reactor > --- PROPULSION (4) --- Flying Fortress v7 > --- UTILITY (12) ----- Experimental Heat Sink Advanced Signal Interpreter Long-range Terrain Scanner 0b10 Decoder Chip [Generic] Advanced Targeting Computer Advanced Target Analyzer Improved Weapon Cycler Improved Maneuvering Thrusters Cloak of Protection Centrium Medium Armor Plating Centrium Medium Armor Plating Advanced Shield Generator > --- WEAPON (4) ------- 8R-AWN's Boregun Greatsword Phasing Sabre > --- INVENTORY (5) ---- Protomatter-59 Advanced Melee Analysis Suite Improved Force Booster System Purifier Advanced Variable Charge Gun Peak State ------------ > --- POWER ------------ Cooled Ion Engine Quantum Reactor > --- PROPULSION ------- Flying Fortress v7 > --- UTILITY ---------- Experimental Heat Sink Advanced Signal Interpreter Long-range Terrain Scanner 0b10 Decoder Chip [Generic] Advanced Targeting Computer Advanced Target Analyzer Improved Weapon Cycler Cloak of Protection Centrium Medium Armor Plating Centrium Medium Armor Plating Advanced Shield Generator System Purifier > --- WEAPON ----------- 8R-AWN's Boregun Greatsword Phasing Sabre > --- INVENTORY -------- Improved Force Booster Improved Maneuvering Thrusters Advanced Variable Charge Gun Guided EMP Blaster [Rating: 147] Favorites ----------- Power Cooled Ion Engine Engine Cooled Ion Engine Power Core Light Neutrino Core Reactor Cold Fusion Reactor Propulsion Flying Fortress v7 Treads Advanced Treads Leg Aluminum Leg Hover Unit Hover Unit Flight Unit Flying Fortress v7 Utility Experimental Heat Sink Device Experimental Heat Sink Storage Compact Matter Pod Processor Advanced Targeting Computer Protection Improved Light Armor Plating Weapon Improved Assault Rifle Energy Gun EM Pulse Gun Energy Cannon Advanced Beam Cannon Ballistic Gun Improved Assault Rifle Ballistic Cannon Mini Assault Cannon Launcher Rocket Launcher Special Weapon Plasma Cutter Impact Weapon Mace Slashing Weapon Greatsword Piercing Weapon Makeshift Spear Build | -11 -10 -10 -9 -9 -9 -8 -8 -8 -8 -8 -7 -7 -6 -6 -6 -6 -5 -5 -5 -5 -5 -5 -5 -4 -4 ------- Run | Scr Mat Min Mat Min Exi Min Mat Gar Mat Gar Fac Sto Fac Low Low Dat Pro Fac Ext Cet Arc Hub Gar Fac Arm Slots Evolved 18 | 3 1 . 7 1 . . 1 . . . 2 1 . . . . . 1 . . . . 1 . . Power 1 | . . . 1 . . . . . . . . . . . . . . . . . . . . . . Propulsion 3 | 1 1 . 1 . . . . . . . . . . . . . . . . . . . . . . Utility 11 | 1 . . 3 1 . . 1 . . . 2 1 . . . . . 1 . . . . 1 . . Weapon 3 | 1 . . 2 . . . . . . . . . . . . . . . . . . . . . . Parts Attached 142 | 7 9 3 34 3 16 . 8 1 . . 11 19 5 1 . 3 2 2 4 6 . . 4 3 1 Power 14 | 1 . 1 2 . 3 . 1 . . . . 2 2 . . . . . . 1 . . . 1 . Engine 8 | 1 . 1 2 . 1 . . . . . . 1 1 . . . . . . . . . . 1 . Core 4 | . . . . . 2 . 1 . . . . . 1 . . . . . . . . . . . . Reactor 2 | . . . . . . . . . . . . 1 . . . . . . . 1 . . . . . Propulsion 25 | 2 7 . 10 . 2 . . . . . . 4 . . . . . . . . . . . . . Treads 2 | . . . 2 . . . . . . . . . . . . . . . . . . . . . . Leg 2 | 2 . . . . . . . . . . . . . . . . . . . . . . . . . Wheel . | . . . . . . . . . . . . . . . . . . . . . . . . . . Hover 13 | . 2 . 8 . 1 . . . . . . 2 . . . . . . . . . . . . . Flight 8 | . 5 . . . 1 . . . . . . 2 . . . . . . . . . . . . . Utility 63 | 2 2 1 9 2 10 . 3 1 . . 11 5 2 . . . 1 1 3 3 . . 4 2 1 Device 38 | 1 1 . 3 . 8 . 1 . . . 10 4 2 . . . 1 . 3 . . . 2 1 1 Storage 1 | . . . 1 . . . . . . . . . . . . . . . . . . . . . . Processor 9 | 1 1 . 2 . 1 . 1 . . . . 1 . . . . . 1 . . . . 1 . . Hackware . | . . . . . . . . . . . . . . . . . . . . . . . . . . Protection 15 | . . 1 3 2 1 . 1 1 . . 1 . . . . . . . . 3 . . 1 1 . Artifact . | . . . . . . . . . . . . . . . . . . . . . . . . . . Weapon 40 | 2 . 1 13 1 1 . 4 . . . . 8 1 1 . 3 1 1 1 2 . . . . . Energy Gun 5 | 1 . . 1 . . . 2 . . . . 1 . . . . . . . . . . . . . Energy Cannon 1 | . . . 1 . . . . . . . . . . . . . . . . . . . . . . Ballistic Gun 15 | 1 . . 7 . 1 . 2 . . . . 3 . . . 1 . . . . . . . . . Ballistic Cannon 1 | . . . . . . . . . . . . 1 . . . . . . . . . . . . . Launcher 8 | . . 1 . 1 . . . . . . . 3 . 1 . . 1 . . 1 . . . . . Special Weapon 1 | . . . 1 . . . . . . . . . . . . . . . . . . . . . . Impact Weapon 2 | . . . 2 . . . . . . . . . . . . . . . . . . . . . . Slashing Weapon 6 | . . . 1 . . . . . . . . . 1 . . 1 . 1 1 1 . . . . . Piercing Weapon 1 | . . . . . . . . . . . . . . . . 1 . . . . . . . . . Special Melee Weapon . | . . . . . . . . . . . . . . . . . . . . . . . . . . Unidentified Prototypes 21 | . . . 2 . 7 . 2 . . . . 9 1 . . . . . . . . . . . . Parts Lost 2 | . . 1 . . 1 . . . . . . . . . . . . . . . . . . . . Power . | . . . . . . . . . . . . . . . . . . . . . . . . . . Propulsion 1 | . . . . . 1 . . . . . . . . . . . . . . . . . . . . Utility . | . . . . . . . . . . . . . . . . . . . . . . . . . . Weapon 1 | . . 1 . . . . . . . . . . . . . . . . . . . . . . . Highest Loss Streak 1 | . . 1 . . 1 . . . . . . . . . . . . . . . . . . . . Average Slot Usage (%) 84 | . 95 96 95 100 95 81 81 82 82 82 79 77 73 75 75 75 74 75 76 76 80 80 80 81 81 Engine 7 | . 13 12 13 12 9 6 5 5 5 5 5 4 4 5 5 5 5 4 4 4 4 4 4 4 4 Core 1 | . . . . . 2 6 5 5 5 5 5 4 . . . . . . . . . . . . . Reactor 1 | . . . . . . . . . . . . . 5 5 5 5 5 4 4 4 4 4 4 4 4 Treads 1 | . . . 3 12 9 . . . . . . . . . . . . . . . . . . . . Hover 4 | . 10 . 17 12 9 . . . . . . . . . . . . . . . . . . . . Flight 4 | . 12 37 1 . . 6 5 5 5 5 5 4 5 5 5 5 5 4 4 4 4 4 4 4 4 Device 19 | . 14 12 13 12 12 18 21 23 23 23 24 20 23 25 25 25 25 23 23 23 23 23 24 27 27 Processor 13 | . 12 6 13 12 12 12 11 11 11 11 10 14 15 15 15 15 15 18 19 19 19 19 18 18 18 Protection 6 | . . 5 7 10 11 6 5 5 5 5 5 5 5 5 5 5 5 4 4 4 9 9 8 9 9 Ballistic Gun 15 | . 13 5 17 18 21 25 23 23 23 23 21 19 10 10 10 9 10 9 6 4 4 4 4 4 4 Launcher 1 | . . 6 1 6 3 . . . . . . . 4 5 5 1 2 . . . . . . . . Slashing Weapon 2 | . . . . . . . . . . . . . . . . 3 2 3 6 8 9 9 9 9 9 Naked Turns . | . . . . . . . . . . . . . . . . . . . . . . . . . . Heaviest Build 77 | 7 8 12 34 41 44 37 45 49 49 49 70 69 77 73 73 73 77 77 72 73 67 67 71 77 77 Greatest Support 77 | 25 25 17 49 49 77 77 77 77 77 77 77 77 77 77 77 77 77 77 77 77 77 77 77 77 77 Greatest Overweight (x) 8 | . . . 2 . 1 . . . . . . 7 . . . . . . 8 . . . . . . Average Overweight (x) . | . . . . . . . . . . . . . . . . . . . . . . . . . . Largest Inventory Capacity 5 | 2 2 2 2 3 3 3 4 4 4 4 4 4 4 5 5 5 5 5 5 5 5 5 5 5 5 Average Capacity 3 | 1 2 2 2 2 3 3 3 4 4 4 4 4 4 4 5 5 5 5 5 5 5 5 5 5 5 Most Carried 5 | 2 2 2 2 2 3 3 3 4 4 4 4 4 4 5 5 5 5 5 5 5 5 5 5 5 5 Average Carried 3 | 1 1 1 1 2 2 3 2 3 4 4 3 3 3 4 4 4 4 4 5 4 5 5 4 5 4 Final Capacity 5 | 2 2 2 2 3 3 3 4 4 4 4 4 4 4 5 5 5 5 5 5 5 5 5 5 5 5 Final Carried 5 | 2 2 2 2 2 3 3 3 4 4 4 3 4 4 5 5 5 5 5 5 5 5 5 5 5 5 Class Distribution -------------------- 37% | Scavenger-Scout 15% | Scavenger-Mutant 11% | Gunner 11% | Scout 8% | Mutant 6% | Scavenger-Gunner 4% | Ninja 3% | Scavenger-Ninja Dominant Class ---------------- Mutant | -10/Materials Scavenger-Mutant | -10/Mines Scavenger-Gunner | -9/Materials Gunner | -9/Mines Gunner | -9/Exiles Scavenger-Mutant | -8/Mines Scavenger-Mutant | -8/Materials Scavenger-Mutant | -8/Garrison Scavenger-Scout | -8/Materials Scavenger-Scout | -8/Garrison Scavenger-Scout | -7/Factory Scavenger-Scout | -7/Storage Scavenger-Scout | -6/Factory Scavenger-Scout | -6/Lower Caves Scavenger-Scout | -6/Lower Caves Scavenger-Scout | -6/Data Miner Scout | -5/Proximity Caves Ninja | -5/Factory Scout | -5/Extension Scavenger-Scout | -5/Cetus Scavenger-Scout | -5/Archives Scavenger-Scout | -5/Hub_04(d) Scavenger-Scout | -5/Garrison Scavenger-Ninja | -4/Factory Scavenger-Ninja | -4/Armory Resources | -11 -10 -10 -9 -9 -9 -8 -8 -8 -8 -8 -7 -7 -6 -6 -6 -6 -5 -5 -5 -5 -5 -5 -5 -4 -4 ----------- Run | Scr Mat Min Mat Min Exi Min Mat Gar Mat Gar Fac Sto Fac Low Low Dat Pro Fac Ext Cet Arc Hub Gar Fac Arm Matter Collected 9881 | 277 131 67 1048 150 591 150 583 472 558 201 1224 1503 356 124 16 180 184 48 628 518 78 . 610 114 70 Remotely . | . . . . . . . . . . . . . . . . . . . . . . . . . . Salvage Created 20434 | 119 687 105 1840 114 511 394 1191 965 1196 345 1956 2525 528 286 39 612 812 210 1095 963 588 950 1834 166 403 Parts 1169 | 8 45 8 114 18 56 25 66 42 81 33 107 146 44 8 6 24 15 2 83 54 13 44 89 17 21 Haulers Intercepted 24 | . 2 . 6 . . . 3 . 2 . 4 5 . . . . . 1 . . . 1 . . . Recyclers Shooed 4 | . 1 . . . . . 1 . . . . 2 . . . . . . . . . . . . . Parts Field Recycled . | . . . . . . . . . . . . . . . . . . . . . . . . . . Retrieved Matter . | . . . . . . . . . . . . . . . . . . . . . . . . . . Parts Self-Destructed 9 | . . . . . . . . . . . . . . 2 4 . 3 . . . . . . . . Prevented 11 | . . . . . . . . . . . . . . 4 2 . 5 . . . . . . . . Kills | -11 -10 -10 -9 -9 -9 -8 -8 -8 -8 -8 -7 -7 -6 -6 -6 -6 -5 -5 -5 -5 -5 -5 -5 -4 -4 ------- Run | Scr Mat Min Mat Min Exi Min Mat Gar Mat Gar Fac Sto Fac Low Low Dat Pro Fac Ext Cet Arc Hub Gar Fac Arm Combat Hostiles Destroyed 353 | . 10 10 36 11 4 9 15 20 19 12 34 40 13 3 3 4 4 1 22 19 4 12 29 6 13 Melee 32 | . . . . . . . . . . . . . . . . . . . 1 1 . 12 8 1 9 Guns 287 | . 9 6 34 3 3 9 15 20 19 12 30 39 10 . . 4 4 1 21 14 4 . 21 5 4 AOE 34 | . 1 4 2 8 1 . . . . . 4 1 3 3 3 . . . . 4 . . . . . Classes Destroyed 22 | 2 4 1 3 . 2 1 . 1 1 . 2 3 . . . . . . . . . 1 1 . . Worker 12 | . . . . . . 2 4 . 1 . 2 1 . . . . . . . . . 2 . . . Builder 11 | . . . . . . . . . 2 . 1 4 1 . . . . . 3 . . . . . . Tunneler 6 | 3 1 . . . . . 1 . . . . . 1 . . . . . . . . . . . . Hauler 24 | . 2 . 6 . . . 3 . 2 . 4 5 . . . . . 1 . . . 1 . . . Recycler 7 | 1 4 . 1 . . . 1 . . . . . . . . . . . . . . . . . . Operator 8 | . . . 1 . . . . . 3 . 3 1 . . . . . . . . . . . . . Drone 6 | . . . . . . . . . . . . 3 . . . . . . 3 . . . . . . Turret 1 | . . . . . 1 . . . . . . . . . . . . . . . . . . . . Watcher 17 | . 2 . 5 . . . 1 . 1 . 2 2 1 . . . . . . . . 3 . . . Swarmer 79 | . 6 5 3 9 . . 2 4 2 7 7 2 4 . 3 . . . . 8 . . 3 5 9 Saboteur 1 | . . . . . . . . . . . . . . . . . . . . . . 1 . . . Grunt 156 | . 4 . 24 2 . 8 7 12 11 4 13 25 5 3 . . 3 1 12 2 . 8 12 . . Brawler 3 | . . . . . . . . . . . 1 1 . . . . . . . . . . . . 1 Duelist 11 | . . . 1 . . 1 . . . . 1 . 1 . . . . . . 1 . . 6 . . Protector 1 | . . . . . . . . . . . . 1 . . . . . . . . . . . . . Sentry 57 | . . . 8 . . . 6 1 5 1 6 5 3 . . . 1 . 6 . 4 2 5 1 3 Specialist 1 | . . . . . . . . . . . . 1 . . . . . . . . . . . . . Hunter 13 | . . . . . . . . 3 1 . 4 2 . . . . . . 2 . . 1 . . . Programmer 11 | . . . . . . . . . . . 2 4 . . . . . . 2 1 . . 2 . . Behemoth 1 | . . . . . . . . . . . . . . . . . . . . . . . 1 . . Cetus Guard 7 | . . . . . . . . . . . . . . . . . . . . 7 . . . . . Enhanced Grunt 4 | . . . . . . . . . . . . . . . . 4 . . . . . . . . . Zionite 1 | . . . . . 1 . . . . . . . . . . . . . . . . . . . . Assembled 11 | . . 5 . . 6 . . . . . . . . . . . . . . . . . . . . Guerrilla 1 | . . . . . . . . . . . . . . . . . . . 1 . . . . . . Best Kill Streak 11 | 4 5 3 8 4 3 7 8 7 11 5 10 7 6 3 3 5 3 2 7 9 4 6 6 5 6 Combat Bots Only 9 | . 4 3 8 4 3 6 3 7 7 5 7 7 3 3 3 4 3 1 5 9 4 4 6 5 6 Max Kills in Single Turn 3 | 1 3 1 2 3 3 2 2 2 2 2 2 3 2 3 2 1 2 1 3 2 1 1 2 1 1 Gunslinging 1 | . . . . . 1 . . . 1 1 1 1 . . . . . . 1 . . . . . . Exploded 3 | . 1 1 1 3 1 . . . . . 2 1 2 3 2 . . . . 2 . . . . . Melee 1 | . . . . . . . . . . . . . . . . . . . 1 1 . 1 1 1 1 Uniques/NPCs Destroyed 4 | . . . . . 2 . . . . . . . . . . 1 . . . 1 . . . . . EX-HEX (-9/Exiles) 8R-AWN (-9/Exiles) EX-DEC (-9/Exiles) EX-BIN (-9/Exiles) Data Miner (-6/Data Miner) Revision 17 (-5/Cetus) Combat | -11 -10 -10 -9 -9 -9 -8 -8 -8 -8 -8 -7 -7 -6 -6 -6 -6 -5 -5 -5 -5 -5 -5 -5 -4 -4 -------- Run | Scr Mat Min Mat Min Exi Min Mat Gar Mat Gar Fac Sto Fac Low Low Dat Pro Fac Ext Cet Arc Hub Gar Fac Arm Damage Taken 12754 | 19 429 416 913 135 780 201 357 667 266 196 630 958 410 13 66 485 41 96 975 1256 177 625 1161 703 779 Core 8691 | 19 346 299 608 101 525 162 271 478 195 131 433 582 244 5 58 283 21 83 689 867 99 433 755 499 505 Absorbed by Shields 4111 | . . . 156 55 281 76 143 196 103 81 248 368 153 5 23 168 15 36 352 454 66 225 423 195 289 Redirected to Core 7611 | . 271 293 570 68 476 111 230 444 173 131 353 521 212 5 31 219 21 47 613 751 99 383 653 473 463 Core Remaining (%) 93 | 96 . 82 . . . 100 . . . 93 . 98 . . . . 92 . . . . . 93 . . Volleys Fired 1060 | 7 41 32 120 12 58 25 70 77 60 29 78 88 40 3 2 15 23 3 70 75 13 . 95 14 10 Largest 4 | 2 2 2 3 3 4 1 2 1 4 4 4 4 2 1 1 2 2 2 2 1 1 . 1 1 1 Hottest 104 | 60 60 60 69 69 99 30 53 30 99 99 99 104 58 50 50 58 58 58 58 50 30 . 30 30 30 Shots Fired 1957 | 14 82 39 258 24 107 25 82 77 126 38 300 321 78 3 2 30 27 5 112 75 13 . 95 14 10 Gun 1918 | 14 82 36 251 18 105 25 82 77 126 38 300 317 76 . . 30 22 4 112 71 13 . 95 14 10 Cannon . | . . . . . . . . . . . . . . . . . . . . . . . . . . Launcher 38 | . . 3 6 6 2 . . . . . . 4 2 3 2 . 5 1 . 4 . . . . . Special 1 | . . . 1 . . . . . . . . . . . . . . . . . . . . . . Kinetic 1806 | 7 41 7 216 18 105 25 82 77 126 38 300 317 76 . . 30 22 4 112 71 13 . 95 14 10 Thermal 36 | . . . 36 . . . . . . . . . . . . . . . . . . . . . . Explosive 17 | . . 3 6 6 2 . . . . . . . . . . . . . . . . . . . . Electromagnetic 98 | 7 41 29 . . . . . . . . . 4 2 3 2 . 5 1 . 4 . . . . . Robot Hit Streak 65 | 5 8 5 50 6 18 5 16 15 19 9 43 48 32 11 13 17 41 45 65 28 5 . 60 8 12 Robot Miss Streak 4 | 2 4 4 4 1 2 2 2 2 2 2 3 3 1 . . 1 . . 1 2 2 . 2 3 . Penetration Max 2 | . . . . . 1 2 2 2 2 1 2 2 2 . . 1 2 . 2 1 1 . 2 . 1 Secondary Targets 25 | . 5 3 1 . 1 . 1 . 1 2 3 7 . . . . . . 1 . . . . . . Max Gunslinging Chain 2 | . 1 1 1 . 1 . 1 . 1 1 1 2 . . . . . . 1 . . . . . . Shots Hit Robots 1620 | 10 47 23 185 16 87 17 70 59 100 25 223 243 65 3 2 28 24 4 105 66 16 41 108 20 33 Core Hits 766 | 6 21 14 75 13 37 18 30 25 45 14 90 104 29 7 3 16 22 2 57 35 6 18 52 10 17 Critical Hits 475 | . 1 . 4 . 15 23 43 33 35 13 32 56 22 . . 9 16 2 56 42 9 7 48 3 6 Critical Kills 191 | . . . 4 . 6 9 17 16 14 7 13 21 9 . . 4 10 2 21 11 4 3 14 3 3 Critical Parts Destroyed 244 | . 1 . . . 6 14 24 16 21 6 19 33 13 . . 4 6 . 31 18 1 3 26 . 2 Melee Attacks 185 | . . . 7 . . . . . . . . . 1 . . 2 . 5 8 7 6 60 30 18 41 Impact 4 | . . . 4 . . . . . . . . . . . . . . . . . . . . . . Slashing 180 | . . . 3 . . . . . . . . . 1 . . 1 . 5 8 7 6 60 30 18 41 Piercing 1 | . . . . . . . . . . . . . . . . 1 . . . . . . . . . Sneak Attacks 13 | . . . 3 . . . . . . . . . . . . 1 . . . . . 5 4 . . Combat Hostiles 5 | . . . . . . . . . . . . . . . . . . . . . . 1 4 . . Follow-up Attacks 21 | . . . . . . . . . . . . . . . . . . . . . 2 7 5 1 6 Damage Inflicted 38804 | 170 890 473 3360 925 1662 634 1485 1136 1669 458 3976 4845 1384 293 96 709 819 91 2711 1841 560 3002 3490 693 1432 Guns 27438 | 110 585 240 2830 205 1285 634 1485 1136 1669 458 3460 4461 1273 . . 549 617 63 2524 1310 235 . 1861 207 241 Cannons . | . . . . . . . . . . . . . . . . . . . . . . . . . . Explosions 4062 | 60 305 233 256 720 377 . . . . . 516 384 111 293 96 . 202 28 . 481 . . . . . Melee 7292 | . . . 262 . . . . . . . . . . . . 160 . . 187 50 325 3002 1629 486 1191 Ramming . | . . . . . . . . . . . . . . . . . . . . . . . . . . Kinetic 26367 | 45 158 41 2450 205 1285 634 1485 1136 1669 458 3460 4461 1273 . . 549 617 63 2524 1310 235 . 1861 207 241 Thermal 1053 | 60 140 100 392 . . . . . . . 49 . . 86 . . . . . 226 . . . . . Explosive 2279 | . 165 133 256 720 377 . . . . . 467 161 . . . . . . . . . . . . . Electromagnetic 1813 | 65 427 199 . . . . . . . . . 223 111 207 96 . 202 28 . 255 . . . . . Impact . | . . . . . . . . . . . . . . . . . . . . . . . . . . Slashing 7292 | . . . 262 . . . . . . . . . . . . 160 . . 187 50 325 3002 1629 486 1191 Piercing . | . . . . . . . . . . . . . . . . . . . . . . . . . . Highest Corruption 3 | . . 3 1 1 1 1 . . . . 1 1 . . . . . . 2 . . . 1 . . Average Corruption 1 | . . 3 1 1 1 1 . . . . 1 1 . . . . . . 1 . . . 1 . . Corruption Purged 8 | . . . . . . . . . . . 2 2 1 . . . . . 2 . . . 1 . . Effects 11 | . . . 5 1 3 1 . . . . . . . . . . . . 1 . . . . . . Message Errors 6 | . . . 1 1 2 1 . . . . . . . . . . . . 1 . . . . . . Energy Discharges 2 | . . . 2 . . . . . . . . . . . . . . . . . . . . . . Data Loss (minor) 1 | . . . 1 . . . . . . . . . . . . . . . . . . . . . . Targeting Errors 1 | . . . 1 . . . . . . . . . . . . . . . . . . . . . . Weapon Failures 1 | . . . . . 1 . . . . . . . . . . . . . . . . . . . . Overload Shots . | . . . . . . . . . . . . . . . . . . . . . . . . . . Overflow Damage 846 | 2 . 13 144 35 1 . . . . . 51 21 . . . . . . . . . 369 209 1 . Projectiles . | . . . . . . . . . . . . . . . . . . . . . . . . . . Explosions 125 | 2 . 13 2 35 1 . . . . . 51 21 . . . . . . . . . . . . . Melee 721 | . . . 142 . . . . . . . . . . . . . . . . . . 369 209 1 . Knockbacks . | . . . . . . . . . . . . . . . . . . . . . . . . . . Impact . | . . . . . . . . . . . . . . . . . . . . . . . . . . Kinetic . | . . . . . . . . . . . . . . . . . . . . . . . . . . Secondary . | . . . . . . . . . . . . . . . . . . . . . . . . . . Self-Inflicted Damage 361 | 19 137 119 . 22 . . . . . . . 64 . . . . . . . . . . . . . Shots 9 | 1 2 4 . 1 . . . . . . . 1 . . . . . . . . . . . . . Rammed . | . . . . . . . . . . . . . . . . . . . . . . . . . . Targets Rammed . | . . . . . . . . . . . . . . . . . . . . . . . . . . Kicked . | . . . . . . . . . . . . . . . . . . . . . . . . . . Crushed . | . . . . . . . . . . . . . . . . . . . . . . . . . . Highest Temperature 300 | 20 26 40 148 71 129 . . . . . 300 5 1 . 1 . 7 . 36 22 . . . . . Average Temperature 36 | 8 9 14 31 19 52 . . . . . 75 4 1 . 1 . 7 . 13 9 . . . . . Received Heat Transfer 2547 | . 30 . 379 12 . 90 132 303 114 54 140 296 89 6 9 56 18 6 225 150 18 135 204 57 24 Effects 3 | . . . . . . . . . . . 3 . . . . . . . . . . . . . . Energy Bleed 2 | . . . . . . . . . . . 2 . . . . . . . . . . . . . . Damage (minor) 1 | . . . . . . . . . . . 1 . . . . . . . . . . . . . . Siege Activations . | . . . . . . . . . . . . . . . . . . . . . . . . . . Robots Corrupted . | . . . . . . . . . . . . . . . . . . . . . . . . . . Combat Hostiles . | . . . . . . . . . . . . . . . . . . . . . . . . . . Parts Fried 6 | 1 2 . . . . . . . . . . 1 . 1 . . . . . 1 . . . . . Impact Corruptions . | . . . . . . . . . . . . . . . . . . . . . . . . . . Robots Melted . | . . . . . . . . . . . . . . . . . . . . . . . . . . Combat Hostiles . | . . . . . . . . . . . . . . . . . . . . . . . . . . Parts Melted 2 | . . . 1 . . . . . . . . . . . . . . . 1 . . . . . . Heat Transferred 1649 | 100 150 150 999 . . . . . . . 50 . . 50 . . . . . 150 . . . . . Parts Sabotaged . | . . . . . . . . . . . . . . . . . . . . . . . . . . Parts Stolen . | . . . . . . . . . . . . . . . . . . . . . . . . . . Parts Stripped . | . . . . . . . . . . . . . . . . . . . . . . . . . . Power Chain Reactions 6 | 1 2 1 . . . . . . . . . . . 1 . . . . . 1 . . . . . Missiles Intercepted . | . . . . . . . . . . . . . . . . . . . . . . . . . . Alert | -11 -10 -10 -9 -9 -9 -8 -8 -8 -8 -8 -7 -7 -6 -6 -6 -6 -5 -5 -5 -5 -5 -5 -5 -4 -4 ------- Run | Scr Mat Min Mat Min Exi Min Mat Gar Mat Gar Fac Sto Fac Low Low Dat Pro Fac Ext Cet Arc Hub Gar Fac Arm Peak Influence 1463 | 20 291 170 893 628 . 238 618 995 983 943 1429 1164 1154 . . . . 238 836 879 491 881 1463 814 715 Average Influence 609 | 5 144 148 568 477 . 77 377 656 750 804 850 920 768 . . . . 140 447 610 454 505 1060 666 449 Maximum Alert Level 4 | . 1 . 3 2 . 1 2 3 3 3 4 4 4 . . . . 1 3 3 2 3 4 3 3 Low Security (%) 14 | 100 67 100 7 . . 79 10 . . . . . . . . . . 93 23 . . 10 . . . Level 1 11 | . 32 . 13 . . 20 33 13 . . . . . . . . . 6 19 19 28 28 . . 54 Level 2 33 | . . . 53 99 . . 56 39 36 15 17 4 46 . . . . . 41 54 71 37 12 61 43 Level 3 36 | . . . 25 . . . . 47 63 84 71 90 44 . . . . . 16 25 . 23 45 38 1 Level 4 4 | . . . . . . . . . . . 10 5 8 . . . . . . . . . 42 . . Level 5 . | . . . . . . . . . . . . . . . . . . . . . . . . . . High Security . | . . . . . . . . . . . . . . . . . . . . . . . . . . Max Security . | . . . . . . . . . . . . . . . . . . . . . . . . . . Squads Dispatched 75 | . 4 . 5 . . . 8 . 6 . 9 16 10 . . . . 3 4 . . 8 . 1 1 Investigation 40 | . 4 . 4 . . . 4 . 3 . 3 7 5 . . . . 2 3 . . 5 . . . Extermination 5 | . . . . . . . . . . . 2 3 . . . . . . . . . . . . . Reinforcement 15 | . . . . . . . . . 2 . 3 4 1 . . . . 1 1 . . 1 . 1 1 Assault 7 | . . . 1 . . . 1 . 1 . . 2 1 . . . . . . . . 1 . . . Garrison 8 | . . . . . . . 3 . . . 1 . 3 . . . . . . . . 1 . . . Intercept . | . . . . . . . . . . . . . . . . . . . . . . . . . . Construction Impeded 6 | . . . . . . . . . . . 1 3 1 . . . . . 1 . . . . . . Haulers Reinforced 1 | . . . . . . . . . . . . . . . . . . . . . . 1 . . . Stealth | -11 -10 -10 -9 -9 -9 -8 -8 -8 -8 -8 -7 -7 -6 -6 -6 -6 -5 -5 -5 -5 -5 -5 -5 -4 -4 --------- Run | Scr Mat Min Mat Min Exi Min Mat Gar Mat Gar Fac Sto Fac Low Low Dat Pro Fac Ext Cet Arc Hub Gar Fac Arm Distress Signals 10 | . . . . . . . . . . . 3 1 . . . . . 1 2 2 . 1 . . . Communications Jammed . | . . . . . . . . . . . . . . . . . . . . . . . . . . Distress Signals . | . . . . . . . . . . . . . . . . . . . . . . . . . . Times Spotted 582 | . 18 14 49 14 27 9 22 25 24 15 48 60 24 3 7 4 7 18 49 30 4 38 34 14 25 Peak Tracking Total 13 | . 4 3 6 4 7 5 6 6 4 4 5 10 6 3 7 4 3 10 7 9 3 13 6 6 10 Tactical Retreats 65 | . 1 . 3 . 7 . 4 4 2 1 6 5 3 . 2 . . 5 4 5 . 4 7 . 2 Traps | -11 -10 -10 -9 -9 -9 -8 -8 -8 -8 -8 -7 -7 -6 -6 -6 -6 -5 -5 -5 -5 -5 -5 -5 -4 -4 ------- Run | Scr Mat Min Mat Min Exi Min Mat Gar Mat Gar Fac Sto Fac Low Low Dat Pro Fac Ext Cet Arc Hub Gar Fac Arm Traps Triggered 26 | . 2 . 1 . . . . 5 . 6 1 2 . . . . . . 2 . . 1 5 1 . Indirectly . | . . . . . . . . . . . . . . . . . . . . . . . . . . Trap Hack Attempts . | . . . . . . . . . . . . . . . . . . . . . . . . . . Triggered . | . . . . . . . . . . . . . . . . . . . . . . . . . . Disarmed . | . . . . . . . . . . . . . . . . . . . . . . . . . . Reprogrammed . | . . . . . . . . . . . . . . . . . . . . . . . . . . Reused . | . . . . . . . . . . . . . . . . . . . . . . . . . . Traps Extracted . | . . . . . . . . . . . . . . . . . . . . . . . . . . Installed . | . . . . . . . . . . . . . . . . . . . . . . . . . . Triggered 3 | . . . . . . . . . . . . . . . . . 3 . . . . . . . . Machines | -11 -10 -10 -9 -9 -9 -8 -8 -8 -8 -8 -7 -7 -6 -6 -6 -6 -5 -5 -5 -5 -5 -5 -5 -4 -4 ---------- Run | Scr Mat Min Mat Min Exi Min Mat Gar Mat Gar Fac Sto Fac Low Low Dat Pro Fac Ext Cet Arc Hub Gar Fac Arm Machines Disabled 62 | . 1 2 1 1 7 1 1 5 3 2 11 5 2 . . . . 2 2 3 1 2 5 1 4 Max in Single Turn 3 | . 1 1 1 1 2 1 1 2 1 1 3 1 . . . . . 1 . 1 1 . 2 1 1 Garrison Relay 8 | . . . . . . . . 3 . 2 . . . . . . . . . . . . 3 . . Phase Generator 2 | . . . . . . . . 1 . . . . . . . . . . . . . . 1 . . Network Hub 2 | . . . . . . . . . . . . . . . . . . . . . . 2 . . . Machines Sabotaged 1 | . . . . . . . . . . . . . . . . . . . . . . 1 . . . Garrisons Compromised . | . . . . . . . . . . . . . . . . . . . . . . . . . . Overloaded Fab Kills . | . . . . . . . . . . . . . . . . . . . . . . . . . . Fab Network Shutdowns . | . . . . . . . . . . . . . . . . . . . . . . . . . . Hacking | -11 -10 -10 -9 -9 -9 -8 -8 -8 -8 -8 -7 -7 -6 -6 -6 -6 -5 -5 -5 -5 -5 -5 -5 -4 -4 --------- Run | Scr Mat Min Mat Min Exi Min Mat Gar Mat Gar Fac Sto Fac Low Low Dat Pro Fac Ext Cet Arc Hub Gar Fac Arm Machines Accessed 126 | . 10 1 13 . 1 1 9 . 7 . 17 16 9 . 1 4 . 2 14 4 1 10 . 2 4 Terminals 93 | . 8 1 8 . . 1 6 . 6 . 8 16 4 . . . . 2 14 4 . 9 . 2 4 Fabricators 5 | . . . . . . . . . . . 3 . 2 . . . . . . . . . . . . Repair Stations 3 | . . . 2 . . . . . . . 1 . . . . . . . . . . . . . . Recycling Units 6 | . 2 . 2 . . . 1 . . . 1 . . . . . . . . . . . . . . Scanalyzers 6 | . . . 1 . . . 1 . . . 2 . 2 . . . . . . . . . . . . Garrison Access 6 | . . . . . . . 1 . 1 . 2 . 1 . . . . . . . . 1 . . . Total Hacks 563 | . 52 5 59 . 1 2 48 . 35 . 54 79 37 . 1 27 . 12 48 10 25 35 . 17 16 Successful 335 | . 33 1 41 . 1 1 27 . 15 . 29 41 21 . 1 27 . 4 29 5 25 18 . 7 9 Failed 225 | . 18 4 18 . . 1 21 . 19 . 25 37 16 . . . . 8 19 5 . 17 . 10 7 Catastrophic 35 | . . . 1 . . . 3 . 5 . 6 5 3 . . . . 1 2 3 . 1 . 3 2 Database Lockouts 3 | . 1 . . . . . . . 1 . . 1 . . . . . . . . . . . . . Manual 283 | . 33 6 28 . 1 4 25 . 19 . 13 55 15 . . . . 10 21 1 . 24 . 17 11 Terminals 406 | . 48 5 37 . . 2 26 . 34 . 23 79 18 . . . . 12 48 10 . 31 . 17 16 Fabricators 17 | . . . . . . . . . . . 12 . 5 . . . . . . . . . . . . Repair Stations 11 | . . . 9 . . . . . . . 2 . . . . . . . . . . . . . . Recycling Units 15 | . 4 . 7 . . . 3 . . . 1 . . . . . . . . . . . . . . Scanalyzers 40 | . . . 6 . . . 14 . . . 9 . 11 . . . . . . . . . . . . Garrison Access 20 | . . . . . . . 5 . 1 . 7 . 3 . . . . . . . . 4 . . . Terminal Hacks 179 | . 19 1 15 . 1 1 6 . 11 . 9 21 4 . 1 27 . 3 17 5 25 6 . 5 2 Record 41 | . . . . . . . . . . . . . . . . 11 . . . 5 25 . . . . Part Schematic 22 | . . . . . . . . . . . 3 3 1 . . 7 . . 5 . . 2 . . 1 Robot Schematic 9 | . . . 1 . . . . . . . . . . . . 6 . . 1 . . 1 . . . Robot Analysis 10 | . 3 1 2 . . 1 1 . . . 1 . 1 . . . . . . . . . . . . Prototype ID Bank 19 | . 3 . 2 . . . 1 . 5 . 2 2 . . . 3 . . . . . 1 . . . Open Door 15 | . . . . . . . . . . . . 6 . . 1 . . 1 7 . . . . . . Branch Access Points 5 | . 1 . 1 . . . 1 . . . 1 . 1 . . . . . . . . . . . . Machine Index 1 | . 1 . . . . . . . . . . . . . . . . . . . . . . . . Terminal Index 8 | . 1 . 2 . . . 1 . . . 1 2 1 . . . . . . . . . . . . Scanalyzer Index 1 | . . . 1 . . . . . . . . . . . . . . . . . . . . . . Unreport Threat 14 | . 2 . . . . . . . 1 . . 5 . . . . . 2 1 . . . . 3 . Locate Traps 10 | . 2 . 3 . . . . . . . . 1 . . . . . . 2 . . 1 . 1 . Security Status 1 | . . . . . . . . . . . . . . . . . . . 1 . . . . . . Recall Investigation 3 | . 1 . . . . . . . 1 . . 1 . . . . . . . . . . . . . Recall Reinforcements 2 | . . . . . . . . . . . . 1 . . . . . . . . . . . 1 . Recall Assault 1 | . . . . . . . . . 1 . . . . . . . . . . . . . . . . Hauler Manifests 4 | . 1 . . . . . 1 . 1 . 1 . . . . . . . . . . . . . . Registered Components 1 | . 1 . . . . . . . . . . . . . . . . . . . . . . . . Registered Prototypes 1 | . . . . . . . . . 1 . . . . . . . . . . . . . . . . Zone Layout 10 | . 3 . 3 . . . 1 . 1 . . . . . . . . . . . . 1 . . 1 EX-Prototype ID Bank 1 | . . . . . 1 . . . . . . . . . . . . . . . . . . . . Fabricator Hacks 7 | . . . . . . . . . . . 5 . 2 . . . . . . . . . . . . Load Schematic 5 | . . . . . . . . . . . 3 . 2 . . . . . . . . . . . . Build 2 | . . . . . . . . . . . 2 . . . . . . . . . . . . . . Repair Station Hacks 6 | . . . 4 . . . . . . . 2 . . . . . . . . . . . . . . Scan Component 3 | . . . 2 . . . . . . . 1 . . . . . . . . . . . . . . Repair 3 | . . . 2 . . . . . . . 1 . . . . . . . . . . . . . . Recycling Unit Hacks 10 | . 2 . 5 . . . 2 . . . 1 . . . . . . . . . . . . . . Report Inventory 5 | . 1 . 2 . . . 1 . . . 1 . . . . . . . . . . . . . . Retrieve Components 5 | . 1 . 3 . . . 1 . . . . . . . . . . . . . . . . . . Scanalyzer 30 | . . . 6 . . . 11 . . . 5 . 8 . . . . . . . . . . . . Insert Component 13 | . . . 4 . . . 3 . . . 3 . 3 . . . . . . . . . . . . Analyze 17 | . . . 2 . . . 8 . . . 2 . 5 . . . . . . . . . . . . Garrison Access Hacks 6 | . . . . . . . 1 . 1 . 2 . 1 . . . . . . . . 1 . . . Unlock Access 6 | . . . . . . . 1 . 1 . 2 . 1 . . . . . . . . 1 . . . Unauthorized Hacks 97 | . 12 . 11 . . . 7 . 3 . 5 20 6 . . . . 1 12 . . 11 . 2 7 Terminals 87 | . 11 . 9 . . . 6 . 3 . 2 20 5 . . . . 1 12 . . 9 . 2 7 Track 16 | . 3 . 2 . . . . . . . . 5 . . . . . . 2 . . 1 . 1 2 Botnet 60 | . 6 . 7 . . . 6 . 3 . 2 13 4 . . . . 1 9 . . 5 . 1 3 Detonate 4 | . 1 . . . . . . . . . . . . . . . . . . . . 2 . . 1 Operators 6 | . 1 . . . . . . . . . . 2 1 . . . . . 1 . . . . . 1 Sabotage 1 | . . . . . . . . . . . . . . . . . . . . . . 1 . . . Fabricators 2 | . . . . . . . . . . . 2 . . . . . . . . . . . . . . Report 2 | . . . . . . . . . . . 2 . . . . . . . . . . . . . . Repair Stations . | . . . . . . . . . . . . . . . . . . . . . . . . . . Recycling Units 4 | . 1 . 2 . . . 1 . . . . . . . . . . . . . . . . . . Reject 2 | . . . 1 . . . 1 . . . . . . . . . . . . . . . . . . Mask 2 | . 1 . 1 . . . . . . . . . . . . . . . . . . . . . . Scanalyzers . | . . . . . . . . . . . . . . . . . . . . . . . . . . Garrison Access 4 | . . . . . . . . . . . 1 . 1 . . . . . . . . 2 . . . Reprogram 3 | . . . . . . . . . . . 1 . 1 . . . . . . . . 1 . . . Watchers 1 | . . . . . . . . . . . . . . . . . . . . . . 1 . . . Data Cores Recovered 8 | . . . 1 . . . . . 3 . 2 1 . . . . . . 1 . . . . . . Used 7 | . . . 1 . . . . . 2 . 2 1 . . . . . . 1 . . . . . . Hacking Detections 107 | . 9 1 11 . . 1 9 . 6 . 16 13 8 . . . . 2 13 2 . 10 . 2 4 Full Trace Events 36 | . 2 1 5 . . . 5 . 3 . 3 5 5 . . . . 2 1 . . 4 . . . Feedback Events 3 | . . . 1 . . . . . . . . 1 1 . . . . . . . . . . . . Corruption 3 | . . . 1 . . . . . . . . 1 1 . . . . . . . . . . . . Feedback Blocked . | . . . . . . . . . . . . . . . . . . . . . . . . . . Robot Schematics Acquired 9 | . . . 1 . . . . . . . . . . . . 6 . . 1 . . 1 . . . Robots Built 1 | . . . . . . . . . . . 1 . . . . . . . . . . . . . . Matter 153 | . . . . . . . . . . . 153 . . . . . . . . . . . . . . Time 40 | . . . . . . . . . . . 40 . . . . . . . . . . . . . . Total Robot Build Rating 1 | . . . . . . . . . . . 1 . . . . . . . . . . . . . . Part Schematics Acquired 29 | . . . 1 . . . 3 . . . 5 3 2 . . 7 . . 5 . . 2 . . 1 Parts Built 2 | . . . . . . . . . . . 2 . . . . . . . . . . . . . . Matter 212 | . . . . . . . . . . . 212 . . . . . . . . . . . . . . Time 53 | . . . . . . . . . . . 53 . . . . . . . . . . . . . . Total Part Build Rating 12 | . . . . . . . . . . . 12 . . . . . . . . . . . . . . Parts Repaired 3 | . . . 2 . . . . . . . 1 . . . . . . . . . . . . . . Time 145 | . . . 89 . . . . . . . 56 . . . . . . . . . . . . . . Parts Recycled . | . . . . . . . . . . . . . . . . . . . . . . . . . . Recycled Matter . | . . . . . . . . . . . . . . . . . . . . . . . . . . Retrieved Matter . | . . . . . . . . . . . . . . . . . . . . . . . . . . Retrieved Components 34 | . 10 . 21 . . . 3 . . . . . . . . . . . . . . . . . . Parts Scanalyzed 9 | . . . 1 . . . 3 . . . 3 . 2 . . . . . . . . . . . . Part Schematics Acquired 7 | . . . 1 . . . 3 . . . 2 . 1 . . . . . . . . . . . . Parts Damaged 2 | . . . 1 . . . . . . . 1 . . . . . . . . . . . . . . Bothacking | -11 -10 -10 -9 -9 -9 -8 -8 -8 -8 -8 -7 -7 -6 -6 -6 -6 -5 -5 -5 -5 -5 -5 -5 -4 -4 ------------ Run | Scr Mat Min Mat Min Exi Min Mat Gar Mat Gar Fac Sto Fac Low Low Dat Pro Fac Ext Cet Arc Hub Gar Fac Arm Used RIF Installer 3 | . . . . . . . . 1 . 1 . . . . . . . . . . . . 1 . . Alert ID Control 1 | . . . . . . . . . . 1 . . . . . . . . . . . . . . . Structural Interface 1 | . . . . . . . . . . . . . . . . . . . . . . . 1 . . Robots Hacked . | . . . . . . . . . . . . . . . . . . . . . . . . . . Non-combat . | . . . . . . . . . . . . . . . . . . . . . . . . . . Combat . | . . . . . . . . . . . . . . . . . . . . . . . . . . Robot Hacks Applied . | . . . . . . . . . . . . . . . . . . . . . . . . . . Relay Couplers Released 14 | . . . . . . . . 6 . 4 . . . . . . . . . . . . 4 . . Machine Destruction 14 | . . . . . . . . 6 . 4 . . . . . . . . . . . . 4 . . Robots Rewired 3 | . . . . . . . . . . . . . . . . . . . 3 . . . . . . Allies Hacked . | . . . . . . . . . . . . . . . . . . . . . . . . . . Hacks Repelled . | . . . . . . . . . . . . . . . . . . . . . . . . . . Allies | -11 -10 -10 -9 -9 -9 -8 -8 -8 -8 -8 -7 -7 -6 -6 -6 -6 -5 -5 -5 -5 -5 -5 -5 -4 -4 -------- Run | Scr Mat Min Mat Min Exi Min Mat Gar Mat Gar Fac Sto Fac Low Low Dat Pro Fac Ext Cet Arc Hub Gar Fac Arm Total Allies 33 | . . . . 3 . . . . . . 1 10 2 . . . . . 15 1 . 1 . . . Largest Group 9 | . . . . 3 3 . . . . . 1 9 2 . . . . . 7 1 . 1 . . . Highest-Rated Group 224 | . . . . 40 40 . . . . . 10 157 82 . . . . . 224 140 . 49 . . . Highest-Rated Ally 156 | . . . . 16 16 . . . . . 10 29 41 . . . . . 156 140 . 49 . . . Total Orders 9 | . . . . . 9 . . . . . . . . . . . . . . . . . . . . GOTO 8 | . . . . . 8 . . . . . . . . . . . . . . . . . . . . ROAM 1 | . . . . . 1 . . . . . . . . . . . . . . . . . . . . Ally Attacks 254 | . . . . 12 7 . . . . . . 46 14 . . . . . 143 21 . 11 . . . Total Damage 5860 | . . . . 83 70 . . . . . . 595 719 . . . . . 3344 491 . 558 . . . Kills 50 | . . . . 3 2 . . . . . . 7 6 . . . . . 27 3 . 2 . . . Allies Corrupted 3 | . . . . . . . . . . . . 3 . . . . . . . . . . . . . Allies Melted . | . . . . . . . . . . . . . . . . . . . . . . . . . . Intel | -11 -10 -10 -9 -9 -9 -8 -8 -8 -8 -8 -7 -7 -6 -6 -6 -6 -5 -5 -5 -5 -5 -5 -5 -4 -4 ------- Run | Scr Mat Min Mat Min Exi Min Mat Gar Mat Gar Fac Sto Fac Low Low Dat Pro Fac Ext Cet Arc Hub Gar Fac Arm Robot Analysis Total 125 | . 3 1 2 . . 1 1 . . . 1 . 1 . . 115 . . . . . . . . . Derelict Logs Recovered 4 | . . 1 . . . . . . . . . . . 2 . . 1 . . . . . . . . Drone Launches 20 | . . . . . . . . . . . . 16 . . . . . . 4 . . . . . . Drone Recoveries . | . . . . . . . . . . . . . . . . . . . . . . . . . . Decoded 0b10 Intel 51 | . . . . . . . . . . . . . . . . . . 3 13 2 . 9 14 4 6 Traps 11 | . . . . . . . . . . . . . . . . . . . 2 . . 2 7 . . Emergency Access 7 | . . . . . . . . . . . . . . . . . . 1 2 . . 2 . 1 1 Items 24 | . . . . . . . . . . . . . . . . . . 1 9 1 . 1 6 2 4 Patrols 2 | . . . . . . . . . . . . . . . . . . . . 1 . . . 1 . Guards 5 | . . . . . . . . . . . . . . . . . . . . . . 3 1 . 1 Exits 2 | . . . . . . . . . . . . . . . . . . 1 . . . 1 . . . Exploration | -11 -10 -10 -9 -9 -9 -8 -8 -8 -8 -8 -7 -7 -6 -6 -6 -6 -5 -5 -5 -5 -5 -5 -5 -4 -4 ------------- Run | Scr Mat Min Mat Min Exi Min Mat Gar Mat Gar Fac Sto Fac Low Low Dat Pro Fac Ext Cet Arc Hub Gar Fac Arm Turns Passed 13263 | 98 675 235 1655 508 1275 279 458 694 462 282 1302 1130 448 138 132 136 201 173 936 395 107 428 678 190 248 Spaces Moved 13341 | 64 775 311 1254 321 944 363 490 774 557 301 1591 980 571 257 244 149 272 286 818 315 140 465 628 201 270 Core 19 | 15 . . . . . . . . . . . 3 . . . . . . 1 . . . . . . Treads 1116 | . . . 266 321 529 . . . . . . . . . . . . . . . . . . . . Legs 98 | 49 49 . . . . . . . . . . . . . . . . . . . . . . . . Wheels . | . . . . . . . . . . . . . . . . . . . . . . . . . . Hover 1521 | . 348 . 963 . 210 . . . . . . . . . . . . . . . . . . . . Flight 10587 | . 378 311 25 . 205 363 490 774 557 301 1591 977 571 257 244 149 272 286 817 315 140 465 628 201 270 Fastest Speed 34 | 50 34 34 34 145 50 50 50 50 50 50 50 50 50 50 50 50 50 50 50 50 50 50 50 50 50 Average Speed 60 | 103 51 34 85 145 111 50 50 50 50 50 50 51 50 50 50 50 50 50 50 50 50 50 50 50 50 Slowest Speed 450 | 120 120 34 200 145 190 50 50 50 50 50 50 400 50 50 50 50 50 50 450 50 50 50 50 50 50 Overloaded Moves . | . . . . . . . . . . . . . . . . . . . . . . . . . . Propulsion Burnouts . | . . . . . . . . . . . . . . . . . . . . . . . . . . Robots Hopped 66 | . 2 . . . . 1 6 . 6 . 18 15 5 . . . . 1 7 . . 3 . 2 . Cave-ins Triggered . | . . . . . . . . . . . . . . . . . . . . . . . . . . Exploration Rate (%) 60 | 5 93 57 85 70 91 82 37 91 50 60 47 92 18 52 52 79 59 16 86 82 90 50 89 7 24 Regions Visited 25 Branch Regions 14 Pre-discovered Areas 29 | . . . . . . . . . . . . . . . . 29 . . . . . . . . . Known Exits Taken 18 | . 1 . 1 . . 1 1 . 1 . 1 1 1 1 1 1 1 1 1 1 1 1 . 1 . Unknown Exits Taken 4 | 1 . 1 . 1 1 . . . . . . . . . . . . . . . . . . . . Scrap Searched 10 | . . 1 . 2 . 1 . . . . . . . 2 4 . . . . . . . . . . Spaces Dug 21 | . . . 2 . . . . . . . . . 1 . . . . 5 1 . . 4 . 6 2 Terrain Destroyed 596 | 4 28 40 58 66 21 6 15 87 19 5 77 32 9 5 . 4 . 5 11 5 . 4 85 7 3 Melee 21 | . . . 2 . . . . . . . . . 1 . . . . 5 1 . . 4 . 6 2 Projectile 116 | . . . . . 5 6 15 12 19 5 4 22 8 . . 4 . . 10 1 . . 3 1 1 AOE 459 | 4 28 40 56 66 16 . . 75 . . 73 10 . 5 . . . . . 4 . . 82 . . Actions | -11 -10 -10 -9 -9 -9 -8 -8 -8 -8 -8 -7 -7 -6 -6 -6 -6 -5 -5 -5 -5 -5 -5 -5 -4 -4 --------- Run | Scr Mat Min Mat Min Exi Min Mat Gar Mat Gar Fac Sto Fac Low Low Dat Pro Fac Ext Cet Arc Hub Gar Fac Arm Total 16713 | 79 977 403 1617 344 1082 433 616 1004 640 397 1891 1384 648 263 251 179 309 300 1227 498 160 557 886 250 318 Wait 1279 | . 132 30 123 1 33 14 21 96 15 49 180 239 7 . . 6 . 1 217 63 4 18 21 8 1 Move 13187 | 63 770 310 1253 320 943 360 478 772 544 299 1555 951 560 256 243 148 271 283 804 314 139 459 626 196 270 Hop 60 | . 2 . . . . 1 5 . 6 . 17 13 5 . . . . 1 6 . . 2 . 2 . Pick Up 57 | 2 3 3 8 . 8 . 3 4 . . 5 . 3 2 1 3 1 3 . 3 . . 2 . 3 Fast Attach 81 | 7 6 2 23 1 14 . 4 . . . 1 14 2 . . . . . 1 3 . . 1 2 . Attach 23 | . 1 . 3 . 1 . 3 . . . 3 . 2 1 . 3 1 2 . 2 . . 1 . . Detach 7 | . . . 2 . 1 . 2 . . . 1 1 . . . . . . . . . . . . . Swap 38 | . 2 1 8 2 1 . 1 1 . . 7 5 1 . . . 1 . 3 1 . . 2 1 1 Drop 122 | . 10 6 27 1 23 . 6 4 . . 8 14 5 1 1 3 1 2 1 6 . . 1 . 2 Fire 1060 | 7 41 32 120 12 58 25 70 77 60 29 78 88 40 3 2 15 23 3 70 75 13 . 95 14 10 Melee 149 | . . . 7 . . . . . . . . . 1 . . 1 . 5 8 7 4 48 22 16 30 Ram . | . . . . . . . . . . . . . . . . . . . . . . . . . . Kick . | . . . . . . . . . . . . . . . . . . . . . . . . . . Crush . | . . . . . . . . . . . . . . . . . . . . . . . . . . Escape Stasis 122 | . . . . . . . . 10 . 12 . . . . . . . . 36 . . 8 56 . . Rewire 11 | . . . . . . . . . . . . . . . . . . . 11 . . . . . . Trap . | . . . . . . . . . . . . . . . . . . . . . . . . . . Miscellaneous 517 | . 10 19 43 7 . 33 23 40 15 8 36 59 22 . 4 . 11 . 70 24 . 22 59 11 1 Route ------- -11/Scrapyard -10/Materials (discovered 4 exits: *Mat x3 / *Min) -10/Mines -9/Materials (discovered 3 exits: *Mat x2 / *Min) -9/Mines (discovered 2 exits: *Mat / *Exi) -9/Exiles (discovered 2 exits: *Min x2) -8/Mines (discovered 2 exits: *Mat x2) -8/Materials -8/Garrison (discovered 3 exits: *Mat x3) -8/Materials -8/Garrison (discovered 2 exits: *Fac x2) -7/Factory (discovered 7 exits: *Fac x2 / *Sto / *Low x2 / Gar / Gar) -7/Storage (discovered 2 exits: *Fac / *Rec) -6/Factory (discovered 4 exits: *Fac / *Low x2 / Gar) -6/Lower Caves -6/Lower Caves -6/Data Miner -5/Proximity Caves -5/Factory (discovered 3 exits: Fac / Upp / *Ext) -5/Extension (discovered 3 exits: *Fac x2 / *Cet) -5/Cetus (discovered 2 exits: *Fac / *Arc) -5/Archives (discovered 3 exits: Fac / *Hub x2) -5/Hub_04(d) (discovered 4 exits: *Fac x3 / Gar) -5/Garrison (discovered 3 exits: *Fac x3) -4/Factory -4/Armory History --------- Turn | Location | Event 3 | -11/Scrapyard | Upgraded with Propulsion slot (x1) 3 | -11/Scrapyard | Upgraded with Utility slot (x1) 3 | -11/Scrapyard | Upgraded with Weapon slot (x1) 4 | -11/Scrapyard | Discovered new exit (range 17) 99 | -11/Scrapyard | Entered Materials 133 | -10/Materials | Central database locked down 229 | -10/Materials | Discovered new exit (range 6) 306 | -10/Materials | Discovered new exit (range 9) 315 | -10/Materials | Build established: Mutant 441 | -10/Materials | Discovered new exit (range 7) 548 | -10/Materials | Core integrity fell below 50% 588 | -10/Materials | Identified exit to Mines 588 | -10/Materials | Reached level 2 588 | -10/Materials | Upgraded with Propulsion slot (x1) 628 | -10/Materials | Discovered new exit (range 16) 774 | -10/Materials | Entered Mines 814 | -10/Mines | Assembled infested the area 819 | -10/Mines | Assisted by a Guerilla fighting off Assembled 960 | -10/Mines | Learned location of 1 exit from Materials 974 | -10/Mines | Discovered new exit (range 16) 1009 | -10/Mines | Entered Materials 1010 | -9/Materials | Identified exit to Materials 1011 | -9/Materials | Reached level 3 1012 | -9/Materials | Upgraded with Utility slot (x1) 1104 | -9/Materials | Upgraded with Power slot (x1) 1104 | -9/Materials | Upgraded with Weapon slot (x1) 1138 | -9/Materials | Reached level 4 1169 | -9/Materials | Build established: Scavenger-Mutant 1229 | -9/Materials | Upgraded with Utility slot (x1) 1353 | -9/Materials | Reached level 5 1360 | -9/Materials | Upgraded with Utility slot (x1) 1374 | -9/Materials | Destroyed 8 combat bots 1434 | -9/Materials | Discovered new exit (range 8) 1441 | -9/Materials | Identified exit to Mines 1569 | -9/Materials | Build established: Scavenger-Gunner 1761 | -9/Materials | Repaired Imp. Light Armor Plating 1866 | -9/Materials | Reached level 6 2150 | -9/Materials | Build established: Gunner 2208 | -9/Materials | Discovered exit to Materials (range 13) 2255 | -9/Materials | Repaired Broken Cmb. Airjet? 2326 | -9/Materials | Reached level 7 2488 | -9/Materials | Upgraded with Propulsion slot (x1) 2488 | -9/Materials | Upgraded with Weapon slot (x1) 2609 | -9/Materials | First assault squad dispatched 2664 | -9/Materials | Entered Mines 2666 | -9/Mines | Reached level 8 2794 | -9/Mines | Assisted by bots powering up and referring to "LRC-V3" 2815 | -9/Mines | Upgraded with Utility slot (x1) 2928 | -9/Mines | Discovered exit to Materials (range 7) 3141 | -9/Mines | Discovered new exit (range 20) 3164 | -9/Mines | Deemed a non-threat by the Exiles lab entrance 3172 | -9/Mines | Entered Exiles 3172 | -9/Exiles | Accompanied by 3 allies 3191 | -9/Exiles | Discovered new exit (range 15) 3250 | -9/Exiles | Met 8R-AWN 3270 | -9/Exiles | Met EX-HEX 3312 | -9/Exiles | Met EX-BIN 3332 | -9/Exiles | Aligned with FarCom system 3334 | -9/Exiles | Given EX-Vault access code 3367 | -9/Exiles | Opened EX-Vault 3377 | -9/Exiles | Found Chronowheel 3409 | -9/Exiles | Warned to stay clear of 0b10 Research branches 3456 | -9/Exiles | Met EX-DEC 3505 | -9/Exiles | Visited The Gauntlet 3783 | -9/Exiles | Attacked by the Exiles 3787 | -9/Exiles | Allies destroyed EX-HEX 3865 | -9/Exiles | Activated Chronowheel 3867 | -9/Exiles | Core integrity fell below 50% 3870 | -9/Exiles | Destroyed 8R-AWN 3878 | -9/Exiles | Found Prototype Ballistic Gun 3878 | -9/Exiles | Identified 8R-AWN's Boregun 3883 | -9/Exiles | Found Prototype Device 3883 | -9/Exiles | Identified AS-neutralizer No. 17b 4085 | -9/Exiles | Destroyed EX-DEC 4154 | -9/Exiles | Destroyed EX-BIN 4160 | -9/Exiles | Found Prototype Device 4160 | -9/Exiles | Identified System Purifier 4315 | -9/Exiles | Found Flying Fortress v7 4320 | -9/Exiles | Found Cloak of Protection 4359 | -9/Exiles | Build established: Scavenger-Mutant 4440 | -9/Exiles | Discovered new exit (range 15) 4447 | -9/Exiles | Stole two prototypes: Flying Fortress v7, Cloak of Protection 4447 | -9/Exiles | Entered Mines 4449 | -8/Mines | Reached level 9 4591 | -8/Mines | Discovered exit to Materials (range 17) 4613 | -8/Mines | Discovered exit to Materials (range 16) 4670 | -8/Mines | Reached level 10 4726 | -8/Mines | Entered Materials 4728 | -8/Materials | Reached level 11 4833 | -8/Materials | Upgraded with Utility slot (x1) 4856 | -8/Materials | Garrison activated, responded to threat 4896 | -8/Materials | Identified exit to Garrison 5126 | -8/Materials | First assault squad dispatched 5155 | -8/Materials | Reached level 12 5184 | -8/Materials | Entered Garrison 5200 | -8/Garrison | Triggered checkpoint 5230 | -8/Garrison | Triggered checkpoint 5313 | -8/Garrison | Destroyed 7 combat bots 5316 | -8/Garrison | Triggered checkpoint 5323 | -8/Garrison | Garrison Relay disabled 5343 | -8/Garrison | Discovered new exit (range 11) 5352 | -8/Garrison | Installed Relay Interface Framework 5381 | -8/Garrison | Triggered checkpoint 5550 | -8/Garrison | Phase Generator disabled 5570 | -8/Garrison | Triggered checkpoint 5574 | -8/Garrison | Triggered checkpoint 5595 | -8/Garrison | Reached level 13 5644 | -8/Garrison | Discovered new exit (range 15) 5658 | -8/Garrison | Triggered checkpoint 5724 | -8/Garrison | Garrison Relay disabled 5768 | -8/Garrison | Spotted B-75 Beast 5794 | -8/Garrison | Discovered new exit (range 12) 5864 | -8/Garrison | Triggered checkpoint 5864 | -8/Garrison | Garrison Relay disabled 5878 | -8/Garrison | Entered Materials 5902 | -8/Materials | Build established: Scavenger-Scout 6113 | -8/Materials | Destroyed 7 combat bots 6278 | -8/Materials | First assault squad dispatched 6291 | -8/Materials | Central database locked down 6339 | -8/Materials | Identified exit to Garrison 6340 | -8/Materials | Entered Garrison 6356 | -8/Garrison | Triggered checkpoint 6359 | -8/Garrison | Reached level 14 6384 | -8/Garrison | Garrison Relay disabled 6440 | -8/Garrison | Garrison Relay disabled 6444 | -8/Garrison | Triggered checkpoint 6490 | -8/Garrison | Discovered new exit (range 13) 6522 | -8/Garrison | Triggered checkpoint 6612 | -8/Garrison | Discovered new exit (range 9) 6619 | -8/Garrison | Expanded RIF knowledge: Alert ID Control 6622 | -8/Garrison | Entered Factory 6649 | -7/Factory | Reached level 15 6656 | -7/Factory | Discovered new exit (range 16) 6705 | -7/Factory | Upgraded with Utility slot (x1) 6909 | -7/Factory | Discovered new exit (range 10) 6996 | -7/Factory | Identified exit to Garrison 7134 | -7/Factory | Repaired Broken Exp. Heat Sink 7242 | -7/Factory | Identified exit to Storage 7242 | -7/Factory | Identified exit to Lower Caves 7466 | -7/Factory | Fabricated Adv. Shield Generator (x2) 7480 | -7/Factory | Reached level 16 7488 | -7/Factory | Upgraded with Utility slot (x1) 7538 | -7/Factory | Identified exit to Garrison 7628 | -7/Factory | Fabricated O-16 Technician (x1) 7869 | -7/Factory | Discovered new exit (range 24) 7889 | -7/Factory | Destroyed 7 combat bots 7906 | -7/Factory | Garrison activated, responded to threat 7924 | -7/Factory | Entered Storage 7976 | -7/Storage | Reached level 17 8057 | -7/Storage | Found Prototype Launcher 8057 | -7/Storage | Identified Scatter Rocket Array 8108 | -7/Storage | Discovered new exit (range 18) 8324 | -7/Storage | First assault squad dispatched 8515 | -7/Storage | Used back door to open Recycling access 8517 | -7/Storage | Identified exit to Recycling 8636 | -7/Storage | Central database locked down 8640 | -7/Storage | Assisted by bots powering up and referring to "LRC-V3" 8791 | -7/Storage | Discovered new exit (range 18) 8807 | -7/Storage | Destroyed 7 combat bots 8878 | -7/Storage | Identified exit to Factory 8977 | -7/Storage | Reached level 18 8979 | -7/Storage | Upgraded with Utility slot (x1) 9054 | -7/Storage | Entered Factory 9129 | -6/Factory | Discovered new exit (range 12) 9158 | -6/Factory | Identified exit to Factory 9223 | -6/Factory | Garrison activated, responded to threat 9281 | -6/Factory | Identified exit to Garrison 9319 | -6/Factory | Reached level 19 9322 | -6/Factory | Discovered new exit (range 22) 9371 | -6/Factory | Identified exit to Lower Caves 9404 | -6/Factory | First assault squad dispatched 9406 | -6/Factory | Spotted B-75 Beast 9502 | -6/Factory | Entered Lower Caves 9556 | -6/Lower Caves | Identified exit to Lower Caves 9608 | -6/Lower Caves | Encountered a Warlord checkpoint 9640 | -6/Lower Caves | Entered another Lower Caves area 9649 | -6/Lower Caves | Spotted B-75 Beast 9738 | -6/Lower Caves | Encountered a Warlord checkpoint 9755 | -6/Lower Caves | Discovered new exit (range 17) 9763 | -6/Lower Caves | Identified exit to Data Miner 9772 | -6/Lower Caves | Entered Data Miner 9772 | -6/Data Miner | Discovered new exit (range 6) 9774 | -6/Data Miner | Identified exit to Proximity Caves 9782 | -6/Data Miner | Met Data Miner 9792 | -6/Data Miner | Learned location of Section 7 (-2) 9792 | -6/Data Miner | Acquired the access code to Warlord's prototype stash 9799 | -6/Data Miner | Received God Mode back door access code from Data Miner 9816 | -6/Data Miner | Destroyed Data Miner 9818 | -6/Data Miner | Reached level 20 9818 | -6/Data Miner | Interfaced with the Data Conduit 9908 | -6/Data Miner | Entered Proximity Caves 9937 | -5/Proximity Caves | Learned Factory terminal intel 10083 | -5/Proximity Caves | Attracted the attention of an 0b10 checkpoint 10086 | -5/Proximity Caves | Discovered exit to Factory (range 14) 10109 | -5/Proximity Caves | Entered Factory 10110 | -5/Factory | Identified exit to Upper Caves 10111 | -5/Factory | Loaded intel: 270 machine locations 10111 | -5/Factory | Reached level 21 10111 | -5/Factory | Upgraded with Utility slot (x1) 10112 | -5/Factory | Loaded intel: 21 terminal locations 10241 | -5/Factory | Identified exit to Factory 10281 | -5/Factory | Discovered new exit (range 5) 10282 | -5/Factory | Identified exit to Extension 10282 | -5/Factory | Entered Extension 10283 | -5/Extension | Loaded intel: 36 machine locations 10284 | -5/Extension | Reached level 22 10313 | -5/Extension | Rescued a captive Derelict 10313 | -5/Extension | Rescued a captive Derelict 10320 | -5/Extension | Rescued a captive Derelict 10320 | -5/Extension | Rescued a captive Derelict 10322 | -5/Extension | Rescued a captive Derelict 10326 | -5/Extension | Rescued a captive Derelict 10442 | -5/Extension | Build established: Ninja 10521 | -5/Extension | Rescued a captive Derelict 10593 | -5/Extension | Spotted B-75 Beast 10596 | -5/Extension | Spotted B-75 Beast 10629 | -5/Extension | Rescued a captive Derelict 10630 | -5/Extension | Rescued a captive Derelict 10702 | -5/Extension | Rescued a captive Derelict 10703 | -5/Extension | Rescued a captive Derelict 10756 | -5/Extension | Reached level 23 10828 | -5/Extension | Discovered new exit (range 24) 10882 | -5/Extension | Rescued A7 10889 | -5/Extension | Build established: Scout 10906 | -5/Extension | Discovered exit to Factory (range 10) 10974 | -5/Extension | Discovered exit to Factory (range 23) 10991 | -5/Extension | Allies destroyed B-75 Beast 11036 | -5/Extension | Allies destroyed B-75 Beast 11147 | -5/Extension | Identified exit to Cetus 11218 | -5/Extension | Entered Cetus 11218 | -5/Cetus | Accompanied by 1 ally 11219 | -5/Cetus | Loaded intel: 24 machine locations 11223 | -5/Cetus | Acquired a Cetus Manufacturing Module code from A7 11229 | -5/Cetus | Spotted Cetus Guard 11229 | -5/Cetus | Spotted Cetus Guard 11245 | -5/Cetus | Spotted Cetus Guard 11258 | -5/Cetus | Allies destroyed Cetus Guard 11261 | -5/Cetus | Spotted Cetus Guard 11265 | -5/Cetus | Extracted ID and sensor layout for unrecognized location from A7's data core 11289 | -5/Cetus | Destroyed Cetus Guard 11295 | -5/Cetus | Destroyed Cetus Guard 11297 | -5/Cetus | Destroyed Cetus Guard 11316 | -5/Cetus | Core integrity fell below 50% 11356 | -5/Cetus | Destroyed 9 combat bots 11386 | -5/Cetus | Started Cetus Manufacturing Module 11411 | -5/Cetus | Manufactured an Enhanced Grunt 11430 | -5/Cetus | Cetus Manufacturing Module disabled 11463 | -5/Cetus | Found a strange terminal 11472 | -5/Cetus | Discovered new exit (range 17) 11479 | -5/Cetus | Identified exit to Archives 11495 | -5/Cetus | Spotted Cetus Guard 11495 | -5/Cetus | Spotted Cetus Guard 11505 | -5/Cetus | Spotted Cetus Guard 11505 | -5/Cetus | Spotted Cetus Guard 11525 | -5/Cetus | Destroyed Cetus Guard 11544 | -5/Cetus | Destroyed Cetus Guard 11549 | -5/Cetus | Destroyed Cetus Guard 11557 | -5/Cetus | Destroyed Cetus Guard 11567 | -5/Cetus | Discovered exit to Factory (range 16) 11577 | -5/Cetus | Met Revision 17 11578 | -5/Cetus | Destroyed 9 combat bots 11583 | -5/Cetus | Destroyed Revision 17 11613 | -5/Cetus | Entered Archives 11614 | -5/Archives | Loaded intel: 8 machine locations 11648 | -5/Archives | Reached level 24 11661 | -5/Archives | Discovered new exit (range 23) 11663 | -5/Archives | Discovered exit to Factory (range 19) 11672 | -5/Archives | Unable to access archive contents 11677 | -5/Archives | Unable to access archive contents 11683 | -5/Archives | Unable to access archive contents 11684 | -5/Archives | Discovered new exit (range 17) 11688 | -5/Archives | Unable to access archive contents 11720 | -5/Archives | Identified exit to Hub_04(d) 11720 | -5/Archives | Entered Hub_04(d) 11721 | -5/Hub_04(d) | Loaded intel: 97 machine locations 11739 | -5/Hub_04(d) | Identified exit to Garrison 11801 | -5/Hub_04(d) | Garrison activated, responded to threat 11862 | -5/Hub_04(d) | Build established: Scavenger-Scout 11997 | -5/Hub_04(d) | Discovered exit to Factory (range 22) 12020 | -5/Hub_04(d) | First assault squad dispatched 12028 | -5/Hub_04(d) | Discovered exit to Factory (range 10) 12095 | -5/Hub_04(d) | Network Hub disabled 12095 | -5/Hub_04(d) | Network Hub disabled 12110 | -5/Hub_04(d) | Disrupted transfer network 12130 | -5/Hub_04(d) | Spotted Lightning 12131 | -5/Hub_04(d) | Spotted Lightning 12148 | -5/Hub_04(d) | Entered Garrison 12149 | -5/Garrison | Loaded intel: 21 machine locations 12170 | -5/Garrison | Phase Generator disabled 12271 | -5/Garrison | Garrison Relay disabled 12348 | -5/Garrison | Triggered checkpoint 12348 | -5/Garrison | Spotted B-75 Beast 12398 | -5/Garrison | Triggered checkpoint 12500 | -5/Garrison | Discovered exit to Factory (range 14) 12510 | -5/Garrison | Expanded RIF knowledge: Structural Interface 12539 | -5/Garrison | Destroyed B-75 Beast 12544 | -5/Garrison | Triggered checkpoint 12611 | -5/Garrison | Discovered exit to Factory (range 18) 12631 | -5/Garrison | Upgraded with Utility slot (x1) 12713 | -5/Garrison | Garrison Relay disabled 12718 | -5/Garrison | Triggered checkpoint 12772 | -5/Garrison | Triggered checkpoint 12790 | -5/Garrison | Discovered exit to Factory (range 16) 12794 | -5/Garrison | Garrison Relay disabled 12794 | -5/Garrison | Reached level 25 12826 | -5/Garrison | Entered Factory 12827 | -4/Factory | Loaded intel: 230 machine locations 13013 | -4/Factory | Discovered new exit (range 5) 13015 | -4/Factory | Identified exit to Armory 13016 | -4/Factory | Entered Armory 13017 | -4/Armory | Loaded intel: 85 machine locations 13151 | -4/Armory | Core integrity fell below 50% 13160 | -4/Armory | Build established: Scavenger-Ninja 13193 | -4/Armory | Reached level 26 13233 | -4/Armory | Core integrity fell below 20% 13264 | -4/Armory | Destroyed by S-27 Virus with Autogun Last Messages --------------- 13245_ HV Slug penetrates S-27 Virus. 13245_ HV Slug penetrates Wall. 13246_ HV Slug penetrates S-27 Virus. 13246_ S-27 Virus suffers critical hit. 13246_ Destroyed Autogun. 13246_ HV Slug penetrates Wall. 13247_ Protomatter-11 decays. 13248_ ALERT: Hostiles spotted, dispatching reinforcements to Terminal A009. 13248_ Acquired Protomatter-59. 13250_ >> DECODED: Imp. Stasis Canceller location. 13252_ Slug penetrates Reinforced Shell. 13253_ Imp. Medium Armor Plating severed. 13253_ Phasing Sabre follow-up attack on Y-64 Sentinel. 13257_ Penetrated by Slug. 13260_ Y-64 Sentinel destroyed. 13261_ Acquired 64 matter. 13263_ HV Slug penetrates S-27 Virus. 13263_ HV Slug penetrates B-60 Warrior. 13263_ B-60 Warrior suffers critical hit. 13264_ Acquired 6 matter. Map ----- +----------------------------------------------------+ | ###???# / %[%*= ###################### | | ##??### ## =%= ####?################# | | ###?##? ? ? ?# "" "" ##############?####### | | ##?#?#???? ??# "]]]" ###################### | | ############## ## "]]]" ###################### | | ?########?###? ## """"" #####################? | | ??? ##?## #??###############?### | | ? ? """" ##+############+###################### | | ?? ? # ## ###################### | | ?? # ## ###################### | | ?? ? """" # ## ##?#####?####?###?###? | | ?? # """"""" ## ########?############# | | ??? # """"""" ## ##################?### | | ????? # """"""" ?# #########?######???#?? | | ???? ? # ? ## #######?########?##### | | ??? # """"""" ## ######?############?## | | ???? ?# """"""" ? # ##################### | | ???? # """"""" # T #########?#########?# | | ???##?####### # #####?#######?######? | | ?? ######?### ? ## ##########?######?#?## | | ?? #####?#########+######## ##################??## | | ?? # ########## #######o##?##########??###?### | | ???+ g ############?######### | | ???+ ? s%#######?#?######???###### | | ?? ? ##?##?#+## ##+#b#########?###?##########? | | ? #####? s ###?##b=s=@ #?################## | | ?? ##### """ #??###%ss* ##############?####? | | ??###### """ ##???# [= ##?###?###########?# | | ??####?# """ ###### ###??#?##########?## | | ??#?###? """ #? ? s ####?######?##?#?### | | ??###?## """ ###### ###?########?####?#? | | ??###### """ #??### #########??######### | | ???###?# ? ###?## """""" #####?##?#####?###?# | | ???##??# """ ? ?##### " ""?" ##??###??##???###?## | | ???##?## """ ?##### "?"" " #########??#####?#?# | | ????#?## """ ?##??# " ! " ##?###???########??# | | ????#?## """? ?###?##?""""""? #######?#?########?# | | ?????#?# """ ##??#? ? ##?########?###???## | | ????? ?/ """? ?#####? ? ? ? #?#####?###?#####?#? | | ??????##? ? ###?## ? ?############??##?#?# | | ???????# ? ###### ? ?###?##?####?#???#?# | | ???????? ? ?#?####?####???####?###?#####?#?##? | | ?????????###+###??##?#######?#############?#??###? | | ???????????# ## ? ?? ? ? ###?##?????????##? | | ???????????# ## """ """ ?######????#?#?#?# | | ????????????? # ""R" ? ? ?""" ?###?#????????#?#? | | ??????????????+ "" " ? """ ###?#?????????##?# | | ?????????????????? ? ? ??##??????????????? | | ??????????????????? ? ? ?? ? ????????????##??#? | | ????????????????????????? ????????????????????##?# | +----------------------------------------------------+ Best States ------------- Heat Dissipation 69 Energy Generation 39 Energy Capacity 530 Matter Stores 450 Matter Capacity 450 Sight Range 17 Robot Scan Range 14 Terrain Scan Range 24 Terrain Scan Density 310 Cloak Strength 5 Armor Coverage 600 Weapon Cycling 20 Evasion (%) 70 Targeting Accuracy 8 Target Analysis 8 Armor Integrity Analysis 33 Recoil Reduction 2 Offensive Hacking 5 Defensive Hacking 10 Item Schematics ----------------- Cmb. Airjet | -9/Materials | Scanalyzed Imp. Light Armor Plating | -8/Materials | Scanalyzed System Purifier | -8/Materials | Scanalyzed Lgt. Neutrino Core | -8/Materials | Scanalyzed Adv. Shield Generator | -7/Factory | Hacked Imp. Medium Armor Plating | -7/Factory | Scanalyzed Exp. Heat Sink | -7/Factory | Scanalyzed Hvy. Machine Gun | -7/Factory | Hacked Phase Shifter | -7/Factory | Hacked Imp. Kinecellerator | -7/Storage | Hacked Coil Gun | -7/Storage | Hacked Force Field | -7/Storage | Hacked Scatter Rocket Array | -6/Factory | Scanalyzed Neutron Cannon | -6/Factory | Hacked Combat Drone Bay | -6/Data Miner | Free Lgt. Regenerative Plating | -6/Data Miner | Free Exp. Cesium-ion Thruster | -6/Data Miner | Free Exp. Targeting Computer | -6/Data Miner | Free Tactical Coordination Suite | -6/Data Miner | Free Cloaking Device | -6/Data Miner | Free Mni. Smartbomb Launcher | -6/Data Miner | Free Enh. Force Lance | -5/Extension | Hacked Adv. Cryofiber Web | -5/Extension | Hacked Adv. Core Analyzer | -5/Extension | Hacked Imp. Antigrav System | -5/Extension | Hacked Point Defense Array | -5/Extension | Hacked Imp. Heavy Siege Treads | -5/Hub_04(d) | Hacked Adv. Coolant Injector | -5/Hub_04(d) | Hacked Lgt. Quantum Reactor | -4/Armory | Hacked Robot Schematics ------------------ O-16 Technician | -9/Materials | Hacked S-27 Virus | -6/Data Miner | Free G-50 Soldier | -6/Data Miner | Free G-67 Veteran | -6/Data Miner | Free X-72 Disruptor | -6/Data Miner | Free I-36 Angel | -6/Data Miner | Free I-47 Archangel | -6/Data Miner | Free K-01 Serf | -5/Extension | Hacked P-70 Sage | -5/Hub_04(d) | Hacked Fabricated ------------ Adv. Shield Generator | x2 | -7/Factory O-16 Technician | x1 | -7/Factory Alien Tech Used ----------------- None Achievements -------------- None Challenges ------------ None RPGLIKE | -11 -10 -10 -9 -9 -9 -8 -8 -8 -8 -8 -7 -7 -6 -6 -6 -6 -5 -5 -5 -5 -5 -5 -5 -4 -4 --------- Run | Scr Mat Min Mat Min Exi Min Mat Gar Mat Gar Fac Sto Fac Low Low Dat Pro Fac Ext Cet Arc Hub Gar Fac Arm Levels Raised 25 | . 1 . 5 1 . 2 2 1 . 1 2 2 1 . . 1 . 1 2 . 1 . 1 . 1 XP Earned 40721 | 3000 1535 1200 7002 1916 243 1625 3087 1780 965 545 3699 1995 2072 290 286 766 975 1218 2322 809 215 636 824 749 967 XP Spent 36430 | 3000 800 . 6890 2450 320 . 6040 550 . . 5200 2900 . 1250 . . . 3200 330 . . . 3500 . . Upgrades 52 | 12 1 . 8 2 6 . 10 4 . . 3 1 . 1 . . . 1 2 . . . 1 . . Power Slot 1 | . . . 1 . . . . . . . . . . . . . . . . . . . . . . Propulsion Slot 3 | 1 1 . 1 . . . . . . . . . . . . . . . . . . . . . . Utility Slot 11 | 1 . . 3 1 . . 1 . . . 2 1 . . . . . 1 . . . . 1 . . Weapon Slot 3 | 1 . . 2 . . . . . . . . . . . . . . . . . . . . . . Core Integrity 5 | . . . . . 4 . 1 . . . . . . . . . . . . . . . . . . Heat Dissipation 3 | 1 . . . . 2 . . . . . . . . . . . . . . . . . . . . Energy Generation 1 | . . . . . . . . . . . 1 . . . . . . . . . . . . . . Matter Storage 1 | . . . . . . . 1 . . . . . . . . . . . . . . . . . . Mass Support 1 | 1 . . . . . . . . . . . . . . . . . . . . . . . . . Inventory Capacity 5 | 2 . . . 1 . . 1 . . . . . . 1 . . . . . . . . . . . Sight Range 1 | 1 . . . . . . . . . . . . . . . . . . . . . . . . . Sensor Range 7 | 1 . . . . . . 1 4 . . . . . . . . . . 1 . . . . . . Terrain Scan Density 3 | 1 . . 1 . . . . . . . . . . . . . . . 1 . . . . . . Ranged Accuracy 4 | . . . . . . . 4 . . . . . . . . . . . . . . . . . . Hack Attack % 1 | 1 . . . . . . . . . . . . . . . . . . . . . . . . . Hack Defense % 2 | 1 . . . . . . 1 . . . . . . . . . . . . . . . . . . Protomatter Created 4810 | . 129 41 422 6 . 241 155 249 245 111 415 636 295 . 33 . 86 . 712 196 . 160 426 78 174 Integrity Restored 10222 | . 170 402 857 106 . 723 432 836 266 117 698 912 405 . 69 . 258 . 1422 540 . 480 1275 230 24 Core 7838 | . 154 402 716 101 . 687 238 511 195 78 486 567 239 . 69 . 258 . 832 540 . 480 1080 181 24 Parts 2384 | . 16 . 141 5 . 36 194 325 71 39 212 345 166 . . . . . 590 . . . 195 49 . Protomatter Decayed 2650 | . 27 4 133 4 46 . 52 . 152 79 102 581 209 . . . . . 932 87 . 171 . . 71 Game ------ Seed ChainBurstBoosters Manual? 0 Play Time 03:54:15 Cumulative 147.7 hours Start 2020.08.02 @ 19:12:05 End 2020.08.02 @ 23:23:00 Sessions 1 Manual Loads 0 Difficulty Rogue Special Mode Winter2019/RPGLIKE Game No. 61 Rogue 61 Adventurer 0 Explorer 0 Win Type - Total 2 Types 1/0/0/1/0/0/0 Lore% 76 Gallery% 69 Achievement% 65 Wizard Run 0 Options --------- ASCII 0 Keyboard 0 Movement Numpad Keybinds 0 Fullscreen 1 Font 14/SmallcapsGlow Map View 84x54 Tactical HUD 1 Map Filters NONE Filters NONE Steam 1 RUN: 96dfbb17-b902-416e-b83d-91942847d430